bitfinex/quotes_SOLUSD_20251106
["timestamp","ask_amount","ask_price","bid_price","bid_amount"]
[1762418039545,20.592,159.55,159.52,0.71]
[1762418039775,0.71,159.55,159.53,6.26841346]
[1762418040775,0.71,159.55,159.52,6.2687246]
[1762418041469,3.40246972,159.53,159.5,6.26933846]
[1762418041861,0.71,159.52,159.5,6.26933846]
[1762418042962,0.71,159.52,159.49,9.67239703]
[1762418043165,3.40246972,159.5,159.44,3.40246972]
[1762418043371,3.40246972,159.48,159.43,9.67481494]
[1762418043561,3.40246972,159.47,159.43,6.27234522]
[1762418044080,0.71,159.46,159.43,6.27234522]
[1762418044475,4.11246972,159.46,159.41,3.60246972]
[1762418044863,0.71,159.45,159.41,4.31246972]
[1762418045471,0.71,159.45,159.42,6.27268476]
[1762418045669,4.11246972,159.45,159.41,6.47303716]
[1762418045868,0.71,159.45,159.41,9.87550688]
[1762418046072,24.70446972,159.48,159.42,4.11246972]
[1762418046383,21.302,159.48,159.43,4.11246972]
[1762418046878,20.592,159.48,159.43,4.11246972]
[1762418047055,21.302,159.48,159.43,4.11246972]
[1762418047250,20.592,159.48,159.43,4.11246972]
[1762418047478,21.302,159.48,159.43,4.11246972]
[1762418047672,0.71,159.47,159.44,6.27195183]
[1762418048059,4.11246972,159.47,159.42,6.27253624]
[1762418048254,3.40246972,159.46,159.41,6.47307558]
[1762418048452,8.68114157,159.46,159.41,6.47307558]
[1762418048674,0.71,159.45,159.41,6.47307558]
[1762418049779,0.71,159.45,159.41,7.18307558]
[1762418050303,0.71,159.45,159.41,22.86590601]
[1762418050485,21.302,159.48,159.43,7.97114157]
[1762418050792,0.71,159.47,159.43,7.97114157]
[1762418050968,0.71,159.47,159.42,8.68114157]
[1762418051579,7.97114157,159.46,159.41,6.47307558]
[1762418051970,8.68114157,159.45,159.41,6.47307558]
[1762418052369,0.71,159.44,159.41,6.47307558]
[1762418052566,8.68114157,159.44,159.41,0.2]
[1762418052778,7.97114157,159.43,159.41,0.2]
[1762418052966,8.68114157,159.43,159.41,0.2]
[1762418053163,0.71,159.42,159.41,0.2]
[1762418053775,7.97114157,159.44,159.41,0.2]
[1762418054285,0.71,159.43,159.41,0.2]
[1762418054781,0.71,159.43,159.41,6.47312435]
[1762418054973,0.71,159.46,159.42,7.97114157]
[1762418055692,20.592,159.48,159.43,8.68114157]
[1762418055855,20.592,159.48,159.44,6.27195183]
[1762418056181,0.71,159.47,159.44,6.27195183]
[1762418056773,0.71,159.48,159.44,6.98195183]
[1762418056966,65.67077935,159.54,159.45,0.71]
[1762418056967,8.68114157,159.5,159.45,0.71]
[1762418057167,15.67077935,159.54,159.47,7.97114157]
[1762418057367,14.94992175,159.53,159.48,7.97114157]
[1762418057668,14.94992175,159.53,159.47,7.97114157]
[1762418057871,0.71,159.52,159.48,14.2415203]
[1762418058459,0.71,159.54,159.49,8.68114157]
[1762418058668,0.71,159.54,159.51,7.97114157]
[1762418058874,0.71,159.54,159.5,7.97114157]
[1762418059389,0.71,159.54,159.5,8.68114157]
[1762418059763,0.71,159.54,159.5,7.97114157]
[1762418059966,0.71,159.54,159.51,6.26919942]
[1762418060484,7.97114157,159.52,159.46,23.64883924]
[1762418060674,7.97114157,159.52,159.46,24.35883924]
[1762418060879,0.71,159.52,159.47,29.91884333]
[1762418061264,0.71,159.52,159.47,30.62884333]
[1762418062073,21.272,159.55,159.5,7.97114157]
[1762418062271,21.272,159.55,159.48,0.67]
[1762418062272,20.592,159.53,159.51,7.97114157]
[1762418062590,0.68,159.55,159.51,7.97114157]
[1762418062774,21.272,159.55,159.52,7.97114157]
[1762418063183,0.68,159.59,159.54,7.97114157]
[1762418063491,0.68,159.59,159.55,7.97114157]
[1762418063895,0.68,159.59,159.55,8.64114157]
[1762418064076,14.2364327,159.61,159.55,8.64114157]
[1762418064077,14.9164327,159.61,159.56,6.26723489]
[1762418064271,0.68,159.6,159.56,6.26723489]
[1762418065094,8.65114157,159.6,159.56,6.26723489]
[1762418065591,0.68,159.59,159.56,6.26723489]
[1762418066074,0.68,159.59,159.55,6.2676277]
[1762418066272,6.94610411,159.59,159.54,8.64114157]
[1762418066486,14.91724568,159.59,159.53,14.23946049]
[1762418066688,0.68,159.58,159.53,14.23946049]
[1762418067191,0.68,159.58,159.54,8.64114157]
[1762418067490,7.97114157,159.6,159.54,8.64114157]
[1762418067805,14.23646389,159.61,159.55,8.64114157]
[1762418068091,14.91646389,159.61,159.55,8.64114157]
[1762418068287,0.68,159.6,159.56,6.26723489]
[1762418068692,0.68,159.6,159.56,14.90837646]
[1762418068876,8.65114157,159.6,159.54,7.97114157]
[1762418069084,8.65114157,159.6,159.52,16.34108268]
[1762418069085,7.97114157,159.59,159.53,17.75996926]
[1762418069290,8.65114157,159.59,159.53,39.69941638]
[1762418069495,7.97114157,159.59,159.53,39.69941638]
[1762418069696,0.68,159.58,159.53,39.69941638]
[1762418069895,0.68,159.58,159.52,6.26880568]
[1762418069896,7.97114157,159.56,159.52,6.26880568]
[1762418070208,7.97114157,159.57,159.52,6.26880568]
[1762418070377,8.65114157,159.57,159.52,6.26880568]
[1762418070579,8.65114157,159.57,159.5,21.94233751]
[1762418070580,7.97114157,159.55,159.5,21.94233751]
[1762418070985,0.68,159.54,159.5,21.94233751]
[1762418071598,8.65114157,159.56,159.51,7.97114157]
[1762418071900,26.8580884,159.59,159.53,7.97114157]
[1762418071901,0.68,159.58,159.53,7.97114157]
[1762418072289,8.65114157,159.58,159.52,7.97114157]
[1762418072508,7.97114157,159.57,159.53,6.26841346]
[1762418072695,0.68,159.57,159.52,14.23986508]
[1762418072887,0.68,159.56,159.52,14.23986508]
[1762418073409,0.68,159.56,159.52,6.26872351]
[1762418073911,8.65114157,159.56,159.52,6.26872351]
[1762418074283,0.68,159.55,159.52,6.26872351]
[1762418075196,31.30874409,159.7,159.54,7.97114157]
[1762418075197,0.68,159.61,159.54,7.97114157]
[1762418075400,0.68,159.61,159.57,7.97114157]
[1762418076497,0.68,159.61,159.58,6.26644942]
[1762418076907,20.592,159.63,159.58,14.89759099]
[1762418077089,0.66,159.62,159.58,14.23759099]
[1762418077681,0.66,159.62,159.57,14.237907]
[1762418077886,7.97114157,159.59,159.53,7.97114157]
[1762418078101,7.97114157,159.58,159.53,14.23955503]
[1762418078592,0.66,159.57,159.54,7.97114157]
[1762418079096,0.66,159.57,159.53,29.91058869]
[1762418079306,0.66,159.57,159.54,7.97114157]
[1762418080120,0.66,159.57,159.53,14.23955503]
[1762418080333,0.66,159.57,159.53,6.26841346]
[1762418080501,6.92687472,159.57,159.52,6.26876592]
[1762418080707,7.97114157,159.56,159.5,7.97114157]
[1762418081003,7.97114157,159.55,159.49,24.30585259]
[1762418081206,7.97114157,159.54,159.5,6.26959247]
[1762418081396,8.63114157,159.54,159.49,6.26988044]
[1762418081596,0.66,159.53,159.49,6.26988044]
[1762418081805,0.66,159.53,159.49,14.24102201]
[1762418082385,8.63114157,159.53,159.48,6.27037423]
[1762418082816,0.66,159.52,159.48,6.27037423]
[1762418083200,8.63114157,159.54,159.49,7.97114157]
[1762418083594,0.66,159.53,159.49,7.97114157]
[1762418084411,0.66,159.53,159.49,6.26989202]
[1762418084712,8.63114157,159.53,159.49,6.26989202]
[1762418085417,0.66,159.52,159.49,6.26989202]
[1762418090621,26.86003541,159.54,159.49,6.26989202]
[1762418090816,23.99396628,159.54,159.49,6.92989202]
[1762418091002,0.66,159.53,159.49,9.6718583]
[1762418092307,0.66,159.53,159.49,2.17702723]
[1762418092905,0.66,159.53,159.49,2.82702723]
[1762418093397,20.592,159.53,159.51,2.17702723]
[1762418093820,20.592,159.53,159.51,2.82702723]
[1762418094210,20.592,159.54,159.51,2.17702723]
[1762418094406,20.592,159.54,159.49,0.65]
[1762418094407,20.592,159.54,159.5,8.44637337]
[1762418094613,21.262,159.54,159.5,8.44637337]
[1762418095336,0.67,159.53,159.5,6.26934614]
[1762418095620,21.262,159.54,159.5,6.91934614]
[1762418095825,21.262,159.54,159.5,9.09637337]
[1762418096431,0.67,159.53,159.5,8.44637337]
[1762418096608,0.67,159.53,159.5,6.26934614]
[1762418096804,0.67,159.53,159.49,6.26964048]
[1762418097008,2.17702723,159.52,159.48,33.27024908]
[1762418097636,2.84702723,159.51,159.47,6.27068189]
[1762418097817,2.17702723,159.5,159.47,6.27068189]
[1762418098014,2.84702723,159.5,159.46,6.27109969]
[1762418098206,0.67,159.49,159.46,6.27109969]
[1762418098709,0.67,159.49,159.45,6.27155848]
[1762418098900,0.67,159.49,159.45,6.92155848]
[1762418099527,0.67,159.49,159.45,6.27155848]
[1762418100346,6.94000296,159.49,159.41,23.20204449]
[1762418100632,22.76902723,159.47,159.42,0.65]
[1762418100928,20.592,159.47,159.42,2.82702723]
[1762418101131,2.17702723,159.51,159.45,2.17702723]
[1762418101304,20.592,159.5,159.46,2.17702723]
[1762418101511,59.78882769,159.56,159.48,2.17702723]
[1762418101512,9.11530217,159.54,159.48,2.17702723]
[1762418101701,0.67,159.54,159.49,2.17702723]
[1762418101906,20.592,159.52,159.49,2.17702723]
[1762418102115,0.67,159.54,159.49,2.17702723]
[1762418102320,2.17702723,159.55,159.45,9.78882769]
[1762418102321,2.84702723,159.56,159.5,2.82702723]
[1762418102531,2.84702723,159.56,159.5,2.17702723]
[1762418102532,20.592,159.55,159.5,2.17702723]
[1762418102718,27.52975419,159.55,159.5,2.17702723]
[1762418102919,0.67,159.54,159.49,2.82702723]
[1762418103121,0.67,159.54,159.49,9.09689224]
[1762418103316,20.592,159.55,159.5,2.82702723]
[1762418103524,20.592,159.55,159.51,2.17702723]
[1762418103716,21.262,159.55,159.51,2.17702723]
[1762418103914,0.67,159.54,159.51,2.17702723]
[1762418104122,0.67,159.54,159.5,2.17702723]
[1762418104310,20.592,159.55,159.5,2.17702723]
[1762418104512,27.5297923,159.55,159.5,2.82702723]
[1762418104811,21.262,159.55,159.51,2.17702723]
[1762418105538,0.67,159.55,159.51,2.17702723]
[1762418105717,9.1135508,159.58,159.52,2.82702723]
[1762418105918,20.592,159.57,159.52,2.82702723]
[1762418106240,15.66486688,159.6,159.54,2.17702723]
[1762418106241,9.11277907,159.6,159.54,2.17702723]
[1762418106416,20.592,159.57,159.54,2.17702723]
[1762418106616,20.592,159.57,159.55,6.2676277]
[1762418106821,20.592,159.57,159.54,8.44499714]
[1762418107030,21.262,159.57,159.54,8.44499714]
[1762418107550,20.592,159.59,159.55,2.82702723]
[1762418107753,21.262,159.59,159.55,2.82702723]
[1762418108625,2.84702723,159.58,159.53,6.26831362]
[1762418108827,2.84702723,159.58,159.52,2.82702723]
[1762418108828,2.17702723,159.57,159.51,8.44592897]
[1762418109031,0.67,159.57,159.52,2.17702723]
[1762418109320,2.84702723,159.56,159.51,8.44592897]
[1762418109730,2.84702723,159.56,159.49,2.82702723]
[1762418109731,2.17702723,159.54,159.49,2.82702723]
[1762418109931,2.17702723,159.54,159.48,8.44740596]
[1762418110137,0.67,159.53,159.48,8.44740596]
[1762418110738,0.67,159.53,159.48,9.09740596]
[1762418111136,2.84702723,159.53,159.48,8.44740596]
[1762418111450,2.84702723,159.53,159.48,9.09740596]
[1762418111635,0.67,159.52,159.48,9.09740596]
[1762418112549,20.592,159.54,159.49,2.82702723]
[1762418112864,20.592,159.54,159.5,9.0966197]
[1762418113048,21.262,159.54,159.5,9.0966197]
[1762418113224,21.262,159.54,159.5,2.17702723]
[1762418113727,21.262,159.54,159.49,2.17702723]
[1762418114231,21.262,159.54,159.49,2.82702723]
[1762418114421,21.262,159.54,159.49,9.09689345]
[1762418115251,0.67,159.53,159.49,9.09689345]
[1762418115750,0.67,159.53,159.49,6.91986622]
[1762418115925,0.67,159.53,159.49,0.65]
[1762418116333,0.67,159.53,159.49,6.91997685]
[1762418117148,0.67,159.53,159.49,0.65]
[1762418117345,2.17702723,159.5,159.46,0.65]
[1762418117550,2.17702723,159.51,159.46,0.65]
[1762418117966,2.84702723,159.5,159.46,0.65]
[1762418118332,2.84702723,159.5,159.46,6.92107731]
[1762418118751,0.67,159.5,159.46,6.92107731]
[1762418119059,20.592,159.51,159.46,9.09810454]
[1762418119232,21.262,159.51,159.46,9.09810454]
[1762418119857,20.592,159.51,159.47,2.82702723]
[1762418120063,2.84702723,159.54,159.48,2.82702723]
[1762418120363,0.67,159.54,159.49,2.17702723]
[1762418120562,0.67,159.53,159.49,2.17702723]
[1762418121429,0.67,159.53,159.49,8.44686561]
[1762418121652,0.67,159.53,159.48,9.09731424]
[1762418121857,2.17702723,159.51,159.47,6.2706574]
[1762418122061,20.592,159.5,159.46,6.2711109]
[1762418122240,23.48902723,159.5,159.45,6.2714807]
[1762418122435,23.48902723,159.5,159.44,2.82702723]
[1762418122436,0.72,159.49,159.44,9.09896783]
[1762418122773,2.89702723,159.49,159.44,8.44896783]
[1762418122936,0.72,159.49,159.44,8.44896783]
[1762418123146,0.72,159.49,159.45,2.88702723]
[1762418123351,0.72,159.49,159.45,2.17702723]
[1762418123545,0.72,159.49,159.45,8.44847962]
[1762418124147,2.17702723,159.48,159.43,2.17702723]
[1762418124368,2.17702723,159.46,159.41,0.2]
[1762418124551,2.89702723,159.48,159.42,2.88702723]
[1762418125164,2.89702723,159.48,159.43,2.17702723]
[1762418125635,0.72,159.47,159.43,2.17702723]
[1762418125835,0.72,159.47,159.43,8.44936967]
[1762418126554,0.72,159.47,159.43,2.17702723]
[1762418126860,2.89702723,159.47,159.41,0.2]
[1762418127165,2.89702723,159.47,159.41,8.65011849]
[1762418127335,2.89702723,159.46,159.41,8.65011849]
[1762418127744,0.72,159.45,159.41,8.65011849]
[1762418129439,0.72,159.45,159.42,2.17702723]
[1762418129638,0.72,159.45,159.42,8.44968437]
[1762418129973,0.72,159.45,159.41,2.37702723]
[1762418130143,0.72,159.45,159.41,8.65004445]
[1762418131163,0.72,159.45,159.42,2.17702723]
[1762418131768,0.72,159.45,159.42,8.44958201]
[1762418131967,26.86289334,159.47,159.42,8.44958201]
[1762418132267,0.72,159.46,159.43,2.17702723]
[1762418132769,20.592,159.47,159.45,2.17702723]
[1762418133665,20.592,159.47,159.45,8.44830058]
[1762418133863,0.72,159.49,159.46,2.17702723]
[1762418134253,21.312,159.49,159.46,2.17702723]
[1762418134657,0.72,159.48,159.46,2.17702723]
[1762418135558,0.72,159.48,159.45,8.44830058]
[1762418136066,0.72,159.48,159.46,2.17702723]
[1762418137349,0.72,159.48,159.45,8.44830058]
[1762418137764,29.03872225,159.5,159.45,8.44830058]
[1762418138077,0.7,159.49,159.45,9.14830058]
[1762418138482,0.7,159.49,159.45,2.17702723]
[1762418139479,0.7,159.49,159.45,8.44857576]
[1762418139692,6.97002031,159.49,159.45,8.44857576]
[1762418140280,0.7,159.48,159.45,8.44857576]
[1762418140465,0.7,159.48,159.45,6.27154853]
[1762418141958,0.7,159.48,159.44,8.44895856]
[1762418142860,26.86209818,159.49,159.45,0.7]
[1762418143059,21.292,159.49,159.45,2.87702723]
[1762418144375,0.7,159.48,159.45,2.17702723]
[1762418144575,0.7,159.48,159.44,9.14895856]
[1762418145590,0.7,159.48,159.44,8.44895856]
[1762418146586,20.592,159.49,159.45,2.87702723]
[1762418146760,21.292,159.49,159.45,2.87702723]
[1762418147164,0.7,159.48,159.45,2.17702723]
[1762418147381,0.7,159.48,159.44,8.44895856]
[1762418147681,0.7,159.48,159.44,9.14895856]
[1762418148183,6.97040603,159.48,159.44,2.87702723]
[1762418148391,2.17702723,159.47,159.42,8.44966602]
[1762418148571,2.17702723,159.47,159.42,6.27263879]
[1762418148572,2.17702723,159.46,159.42,6.27263879]
[1762418148771,2.87702723,159.46,159.42,6.27263879]
[1762418149068,0.7,159.45,159.42,6.27263879]
[1762418149301,2.17702723,159.48,159.42,8.44966602]
[1762418149583,2.87702723,159.47,159.42,9.14964195]
[1762418149779,2.17702723,159.46,159.42,6.97261472]
[1762418149982,0.7,159.47,159.43,0.7]
[1762418150786,2.87702723,159.47,159.43,0.7]
[1762418151480,0.7,159.46,159.42,24.13148864]
[1762418151656,2.87702723,159.46,159.42,22.65446141]
[1762418154070,0.7,159.46,159.42,24.84148864]
[1762418154576,0.7,159.46,159.42,26.06877467]
[1762418155982,0.7,159.46,159.42,22.66446141]
[1762418157584,0.7,159.46,159.42,26.06877467]
[1762418159892,3.40431326,159.47,159.43,0.71]
[1762418160075,0.68,159.46,159.43,0.71]
[1762418160274,4.08431326,159.47,159.43,0.71]
[1762418160800,0.68,159.5,159.46,3.40431326]
[1762418160962,31.33603796,159.57,159.48,3.40431326]
[1762418160963,0.68,159.52,159.48,3.40431326]
[1762418161363,21.272,159.52,159.48,4.11431326]
[1762418161600,21.272,159.52,159.49,6.26998557]
[1762418161816,0.68,159.55,159.5,3.40431326]
[1762418162104,0.68,159.57,159.53,3.40431326]
[1762418162389,0.68,159.57,159.54,3.40431326]
[1762418163473,0.68,159.6,159.55,3.40431326]
[1762418163777,4.08431326,159.62,159.56,9.67154815]
[1762418163980,30.94132279,159.62,159.56,4.11431326]
[1762418164178,3.40431326,159.58,159.53,3.40431326]
[1762418164663,0.68,159.57,159.53,10.38272672]
[1762418166085,4.08431326,159.57,159.52,30.97508111]
[1762418166275,4.08431326,159.57,159.52,46.64709715]
[1762418166589,0.68,159.56,159.52,46.64709715]
[1762418166990,0.68,159.56,159.52,30.97508111]
[1762418167293,3.40431326,159.55,159.51,6.26919465]
[1762418167591,3.40431326,159.55,159.51,20.592]
[1762418167770,3.40431326,159.56,159.51,30.26545241]
[1762418168099,3.40431326,159.56,159.51,30.97545241]
[1762418168100,0.68,159.55,159.51,30.97545241]
[1762418169491,0.68,159.55,159.51,27.57113915]
[1762418170172,24.67631326,159.57,159.52,4.11431326]
[1762418170372,21.272,159.57,159.53,3.40431326]
[1762418170764,24.67631326,159.57,159.52,4.11431326]
[1762418170968,4.08431326,159.56,159.51,9.67345241]
[1762418171195,0.68,159.56,159.52,3.40431326]
[1762418171784,0.68,159.56,159.52,9.67286752]
[1762418172699,0.68,159.56,159.52,10.38286752]
[1762418173000,23.99631326,159.57,159.53,0.71]
[1762418173308,20.592,159.56,159.53,4.11431326]
[1762418174293,20.592,159.56,159.53,10.38248758]
[1762418174495,21.272,159.56,159.53,9.67248758]
[1762418174887,20.592,159.56,159.53,6.97817432]
[1762418175083,20.592,159.56,159.53,10.38248758]
[1762418175410,21.272,159.56,159.52,9.67306609]
[1762418175699,21.272,159.56,159.52,10.38306609]
[1762418175896,21.272,159.56,159.52,6.97875283]
[1762418176197,24.67631326,159.56,159.52,6.97875283]
[1762418178268,3.40431326,159.58,159.53,4.11431326]
[1762418178794,3.40431326,159.58,159.54,0.71]
[1762418179014,20.592,159.58,159.55,3.40431326]
[1762418179504,0.68,159.57,159.53,3.40431326]
[1762418179685,4.08431326,159.57,159.52,26.05508213]
[1762418179886,3.40431326,159.55,159.52,6.26875283]
[1762418180196,3.40431326,159.55,159.52,6.97875283]
[1762418180397,4.08431326,159.55,159.52,6.26875283]
[1762418180604,3.40431326,159.55,159.52,6.97875283]
[1762418181081,3.40431326,159.56,159.52,6.97875283]
[1762418181284,4.08431326,159.55,159.52,6.26875283]
[1762418181707,4.08431326,159.55,159.51,6.26919942]
[1762418181904,4.08431326,159.55,159.51,6.97919942]
[1762418183889,4.08431326,159.55,159.51,10.38351268]
[1762418184086,3.40431326,159.53,159.48,19.74009833]
[1762418184611,4.07431326,159.53,159.49,0.66]
[1762418185016,3.40431326,159.53,159.48,9.67469199]
[1762418185212,0.67,159.52,159.48,10.33469199]
[1762418188100,4.07431326,159.52,159.48,6.93037873]
[1762418188296,3.40431326,159.51,159.46,3.40431326]
[1762418188508,4.07431326,159.51,159.47,0.66]
[1762418188707,4.07431326,159.51,159.45,6.27140061]
[1762418188708,3.40431326,159.49,159.45,6.27140061]
[1762418188910,3.40431326,159.48,159.43,3.40431326]
[1762418189112,3.40431326,159.47,159.42,4.06431326]
[1762418189322,4.07431326,159.49,159.44,3.40431326]
[1762418189693,0.67,159.48,159.44,4.06431326]
[1762418189932,4.07431326,159.48,159.44,6.93165719]
[1762418191027,3.40431326,159.48,159.44,6.93165719]
[1762418191192,3.40431326,159.49,159.44,9.67597045]
[1762418191394,3.40431326,159.49,159.45,0.66]
[1762418191595,0.67,159.48,159.44,10.33597045]
[1762418192320,3.40431326,159.49,159.45,0.66]
[1762418192523,0.67,159.49,159.45,4.06431326]
[1762418192820,3.40431326,159.5,159.45,4.06431326]
[1762418192994,0.67,159.52,159.48,3.40431326]
[1762418193195,4.07431326,159.54,159.48,3.40431326]
[1762418193403,3.40431326,159.53,159.48,3.40431326]
[1762418193721,24.66631326,159.53,159.48,4.06431326]
[1762418193923,0.67,159.52,159.48,4.06431326]
[1762418194520,4.07431326,159.54,159.49,10.33429883]
[1762418194701,0.67,159.55,159.49,10.33429883]
[1762418194904,4.07431326,159.54,159.49,10.33429883]
[1762418195400,0.67,159.53,159.49,10.33429883]
[1762418195815,4.07431326,159.53,159.49,6.26998557]
[1762418196410,0.65,159.53,159.49,6.26998557]
[1762418196718,0.65,159.53,159.49,10.39429883]
[1762418197708,0.65,159.53,159.49,9.67429883]
[1762418198717,0.65,159.53,159.49,6.26998557]
[1762418199701,4.05431326,159.53,159.49,6.26998557]
[1762418199901,4.05431326,159.53,159.48,10.39456206]
[1762418200108,0.65,159.52,159.48,10.39456206]
[1762418200311,0.65,159.52,159.48,26.07050888]
[1762418200529,0.65,159.52,159.49,3.40431326]
[1762418201022,0.65,159.52,159.5,6.26959247]
[1762418201506,3.40431326,159.54,159.5,6.26959247]
[1762418201824,0.65,159.53,159.5,6.26959247]
[1762418202223,3.40431326,159.54,159.5,6.26959247]
[1762418202405,4.05431326,159.54,159.5,6.98959247]
[1762418202934,0.65,159.53,159.5,6.26959247]
[1762418204122,3.40431326,159.54,159.5,6.98959247]
[1762418204309,23.99631326,159.55,159.51,0.72]
[1762418204628,0.65,159.54,159.5,9.67390573]
[1762418205015,4.05431326,159.54,159.5,6.26959247]
[1762418205420,0.65,159.53,159.5,6.26959247]
[1762418206205,0.65,159.53,159.5,6.98959247]
[1762418206707,23.99631326,159.55,159.51,0.72]
[1762418206905,0.65,159.54,159.5,26.06788692]
[1762418208428,0.65,159.54,159.5,6.98959247]
[1762418208727,0.65,159.54,159.5,10.39390573]
[1762418210116,0.65,159.54,159.5,37.39390573]
[1762418210314,6.26632047,159.59,159.53,3.40431326]
[1762418210512,3.40431326,159.6,159.55,3.40431326]
[1762418210717,0.65,159.58,159.54,3.40431326]
[1762418210917,21.242,159.58,159.54,3.40431326]
[1762418211119,21.242,159.58,159.54,4.12431326]
[1762418211631,0.65,159.57,159.53,3.40431326]
[1762418211828,0.65,159.57,159.52,10.39311967]
[1762418212036,0.65,159.57,159.5,16.3007112]
[1762418212037,3.40431326,159.54,159.5,6.26930622]
[1762418212218,3.40431326,159.53,159.5,6.26930622]
[1762418212419,3.40431326,159.53,159.49,6.26998557]
[1762418212730,0.66,159.53,159.49,10.33429883]
[1762418213829,0.66,159.55,159.5,4.06431326]
[1762418214026,0.66,159.55,159.51,4.06431326]
[1762418214424,2.17613276,159.57,159.52,2.83613276]
[1762418214622,2.83613276,159.57,159.52,2.83613276]
[1762418214816,0.66,159.56,159.52,2.83613276]
[1762418215417,0.66,159.56,159.53,6.26841346]
[1762418216023,2.83613276,159.57,159.53,6.92841346]
[1762418216338,0.66,159.56,159.53,6.26841346]
[1762418219342,0.66,159.56,159.52,6.26880641]
[1762418219514,0.66,159.56,159.52,6.92880641]
[1762418219713,2.17613276,159.57,159.53,0.66]
[1762418219918,2.83613276,159.57,159.53,0.66]
[1762418220551,9.10187596,159.6,159.54,2.17613276]
[1762418220934,22.76813276,159.59,159.55,0.66]
[1762418221119,65.66013678,159.65,159.55,2.83613276]
[1762418221318,2.17613276,159.62,159.57,6.26684213]
[1762418221940,21.252,159.61,159.56,6.927174]
[1762418222132,23.42813276,159.61,159.56,6.927174]
[1762418222450,0.66,159.6,159.56,6.927174]
[1762418222931,0.66,159.6,159.56,9.10330676]
[1762418223456,0.66,159.6,159.56,6.927174]
[1762418223616,20.592,159.61,159.57,2.83613276]
[1762418223816,23.42813276,159.61,159.57,0.66]
[1762418224018,20.592,159.63,159.59,2.17613276]
[1762418224245,0.66,159.65,159.6,2.17613276]
[1762418224718,0.66,159.65,159.61,0.66]
[1762418225337,0.66,159.65,159.6,2.17613276]
[1762418225538,0.66,159.65,159.6,8.44172551]
[1762418225825,2.17613276,159.62,159.57,33.26682503]
[1762418226028,2.83613276,159.61,159.56,34.3]
[1762418226332,2.83613276,159.61,159.56,7.3]
[1762418226533,0.66,159.6,159.56,29.89528794]
[1762418227041,0.66,159.6,159.56,13.56720071]
[1762418227042,2.83613276,159.6,159.56,13.56720071]
[1762418227245,2.83613276,159.6,159.56,14.22720071]
[1762418228221,2.17613276,159.61,159.56,6.26720071]
[1762418228633,0.66,159.6,159.56,6.26720071]
[1762418229248,2.17613276,159.61,159.56,6.26720071]
[1762418229453,0.66,159.6,159.58,6.26644942]
[1762418229658,0.66,159.6,159.56,6.26715362]
[1762418230047,2.83613276,159.6,159.54,7.3]
[1762418230344,2.83613276,159.6,159.55,6.26757698]
[1762418230523,2.83613276,159.6,159.54,14.22795571]
[1762418230720,2.17613276,159.57,159.54,6.26795571]
[1762418230951,2.17613276,159.57,159.52,6.26880641]
[1762418231151,0.66,159.56,159.52,6.26880641]
[1762418231349,2.83613276,159.56,159.52,6.26880641]
[1762418231842,0.66,159.55,159.52,6.26880641]
[1762418232042,2.83613276,159.55,159.52,6.26880641]
[1762418232245,0.66,159.55,159.52,6.26880641]
[1762418233245,0.66,159.57,159.53,0.66]
[1762418233552,0.66,159.57,159.54,6.26802055]
[1762418234747,0.66,159.57,159.53,6.26841346]
[1762418234939,2.83613276,159.57,159.53,6.26841346]
[1762418235249,2.17613276,159.55,159.52,6.26871984]
[1762418235642,2.83613276,159.55,159.52,6.26871984]
[1762418235834,2.83613276,159.55,159.5,6.92929192]
[1762418236035,2.83613276,159.55,159.49,6.26991337]
[1762418236036,2.17613276,159.52,159.49,6.26991337]
[1762418236243,2.17613276,159.51,159.47,6.27066906]
[1762418236429,2.17613276,159.49,159.44,2.17613276]
[1762418236624,2.17613276,159.45,159.39,0.2]
[1762418236840,2.17613276,159.44,159.4,6.27344545]
[1762418237159,2.17613276,159.43,159.4,6.27344545]
[1762418237354,2.17613276,159.44,159.39,7.13382956]
[1762418237545,2.17613276,159.44,159.4,6.27341307]
[1762418237744,2.83613276,159.44,159.41,6.47303021]